fUSD/lending_fUSD_20251228
["ID","MTS","AMOUNT","RATE_DAILY","PERIOD"]
[399936770,1766896237772,-500.0,0.00015512,2]
[399936771,1766896237782,-195.34026349,0.00015512,2]
[399936772,1766896237791,-474.38634112,0.00015512,2]
[399936773,1766896237929,-25.61365888,0.00015512,2]
[399936774,1766896237939,-484.84696176,0.00015512,2]
[399936775,1766896237949,-259.95822729,0.00015512,2]
[399936776,1766896237959,-604.3518,0.00015512,2]
[399936777,1766896237968,-500.0,0.00015512,2]
[399936778,1766896237977,-623.19916558,0.00015512,2]
[399936779,1766896237987,-500.0,0.00015512,2]
[399936781,1766896238000,-500.0,0.00015512,2]
[399936783,1766896238009,-500.0,0.00015512,2]
[399936785,1766896238019,-275.65673381,0.00015512,2]
[399936787,1766896238031,-224.34326619,0.00015512,2]
[399936789,1766896238041,-500.0,0.00015512,2]
[399936791,1766896238050,-500.0,0.00015512,2]
[399936793,1766896238060,-500.0,0.00015512,2]
[399936795,1766896238070,-39.50372383,0.00015513,2]
[399936797,1766896238081,-1194.18589109,0.00015513,2]
[399936799,1766896238093,-12068.54975841,0.00015513,2]
[399937024,1766896244384,-380.05252024,0.00015513,2]
[399937025,1766896244396,-301.38723225,0.00015513,2]
[399937033,1766896245752,-1876.8110829,0.00015513,2]
[399937034,1766896246028,-1869.7001,0.00015513,2]
[399937157,1766897431864,-261.74,0.00013699,2]
[399937158,1766897431874,-29.91158265,0.00014313,2]
[399937181,1766897437871,-136.74841735,0.00014313,2]
[399937182,1766897437882,-166.66,0.00014615,2]
[399937183,1766897437891,-46.44180649,0.00014654,2]
[399937184,1766897437903,-483.05057557,0.00014654,2]
[399937185,1766897437923,-419.98411378,0.00014654,2]
[399937186,1766897437935,-1733.86308309,0.00014654,2]
[399937187,1766897437946,-2273.05774565,0.00014654,2]
[399937188,1766897437979,-142.76267542,0.00014654,2]
[399937189,1766897437989,-999.0,0.00014746,3]
[399937190,1766897437999,-530.33,0.00014818,2]
[399937191,1766897438009,-166.66,0.00014916,2]
[399937192,1766897438019,-1200.0,0.00014972,2]
[399937193,1766897438029,-500.0,0.00014973,2]
[399937194,1766897438039,-98.40044729,0.00015,2]
[399937195,1766897438050,-441.81823743,0.00015,2]
[399937196,1766897438071,-1107.55131528,0.00015,2]
[399937197,1766897438081,-150.0,0.00015206,2]
[399937198,1766897438091,-150.0,0.00015206,2]
[399937199,1766897438100,-157.44686875,0.00015206,2]
[399937200,1766897438109,-150.0,0.00015206,2]
[399937201,1766897438119,-150.0,0.00015206,2]
[399937202,1766897438128,-500.0,0.00015206,2]
[399937203,1766897438137,-150.0,0.00015206,2]
[399937204,1766897438147,-150.0,0.00015206,2]
[399937206,1766897438157,-150.0,0.00015206,2]
[399937208,1766897438168,-150.0,0.00015206,2]
[399937209,1766897438179,-150.0,0.00015206,2]
[399937210,1766897438189,-150.0,0.00015206,2]
[399937211,1766897438199,-300.0,0.00015214,2]
[399937212,1766897438208,-300.0,0.00015214,2]
[399937213,1766897438219,-449.88867524,0.00015216,2]
[399937214,1766897438231,-450.58499,0.00015216,2]
[399937215,1766897438243,-299.52633476,0.00015216,2]
[399937216,1766897438252,-166.66,0.00015217,2]
[399937217,1766897438262,-500.0,0.00015233,2]
[399937218,1766897438271,-150.0,0.00015233,2]
[399937219,1766897438281,-150.0,0.00015233,2]
[399937220,1766897438290,-154.6611204,0.00015233,2]
[399937221,1766897438301,-150.0,0.00015233,2]
[399937222,1766897438311,-500.0,0.00015233,2]
[399937223,1766897438320,-150.0,0.00015233,2]
[399937224,1766897438330,-150.0,0.00015233,2]
[399937225,1766897438339,-150.0,0.00015233,2]
[399937226,1766897438349,-150.0,0.00015233,2]
[399937227,1766897438358,-615.2364965,0.0001526,2]
[399937228,1766897438368,-209.77163815,0.00015261,2]
[399937229,1766897438377,-150.0,0.00015261,2]
[399937230,1766897438387,-150.0,0.00015261,2]
[399937231,1766897438396,-508.13304353,0.00015261,2]
[399937232,1766897438406,-150.0,0.00015261,2]
[399937233,1766897438416,-150.0,0.00015261,2]
[399937234,1766897438425,-217.74373163,0.00015261,2]
[399937235,1766897438434,-150.0,0.00015261,2]
[399937236,1766897438444,-300.0,0.0001527,2]
[399937237,1766897438454,-150.0,0.00015288,2]
[399937238,1766897438463,-150.0,0.00015288,2]
[399937239,1766897438472,-150.0,0.00015288,2]
[399937240,1766897438482,-150.0,0.00015288,2]
[399937241,1766897438491,-175.94001152,0.00015288,2]
[399937242,1766897438501,-153.31494816,0.00015288,2]
[399937243,1766897438510,-150.0,0.00015288,2]
[399937244,1766897438520,-153.38940865,0.00015288,2]
[399937245,1766897438529,-160.58231847,0.00015288,2]
[399937246,1766897438539,-223.79697415,0.00015316,2]
[399937249,1766897439994,-62.96275266,0.00015316,2]
[399937250,1766897440004,-238.95921893,0.0001541,2]
[399937279,1766897443476,-61.04078107,0.0001541,2]
[399937280,1766897443485,-500.0,0.00015421,2]
[399937281,1766897443494,-150.0,0.00015425,2]
[399937282,1766897443503,-4155.95921893,0.00015425,2]
[399937283,1766897444169,-1938.0774899,0.00015425,2]
[399937284,1766897444181,-1491.625,0.00015425,2]
[399937285,1766897444192,-1772.16665824,0.00015425,2]
[399937286,1766897444286,-642.16163293,0.00015425,2]
[399937287,1766897444295,-150.0,0.00015452,2]
[399937288,1766897444304,-2335.83826707,0.00015452,2]
[399937289,1766897444316,-572.15742169,0.00015452,2]
[399937293,1766897446162,-3281.0519054,0.00015452,2]
[399937353,1766897738712,156.81,7.728e-05,2]
[399937354,1766897738905,156.81,8.243e-05,2]
[399937355,1766897739379,156.81,8.759e-05,2]
[399937356,1766897739429,156.81,9.274e-05,2]
[399937357,1766897739519,156.81,9.789e-05,2]
[399937358,1766897739718,156.81,0.00010304,2]
[399937359,1766897740016,156.81,0.00010819,2]
[399937360,1766897740230,156.81,0.00011335,2]
[399937361,1766897740625,156.81,0.0001185,2]
[399937362,1766897740822,156.81,0.00012365,2]
[399937363,1766897741064,156.81,0.0001288,2]
[399937364,1766897741262,156.81,0.00013395,2]
[399937370,1766898149436,250.0,0.00013316,2]
[399937371,1766898149751,250.0,0.00013316,2]
[399937372,1766898150055,250.0,0.00013316,2]
[399937373,1766898150368,250.0,0.00013316,2]
[399937385,1766898383599,182.05,0.00030136,120]
[399937495,1766898631957,-156.81,0.00013911,2]
[399937496,1766898631969,-366.86009232,0.00013911,2]
[399937497,1766898631979,-195.0,0.00013911,2]
[399937498,1766898631990,-600.0,0.00013911,2]
[399937499,1766898632001,-600.0,0.00013975,2]
[399937500,1766898632012,-639.83538298,0.00013975,2]
[399937501,1766898632022,-156.63631246,0.00013988,2]
[399937502,1766898632034,-156.81,0.00014426,2]
[399937503,1766898632044,-200.80437309,0.00014533,2]
[399937504,1766898632060,-413.8620027,0.00014533,2]
[399937505,1766898632076,-585.33362421,0.00014533,2]
[399937506,1766898632087,-65.69568657,0.00014534,2]
[399937507,1766898632129,-1134.30431343,0.00014534,2]
[399937508,1766898632142,-300.0,0.00014534,2]
[399937509,1766898632152,-1221.792565,0.00014535,2]
[399937510,1766898632162,-150.0,0.00014842,2]
[399937511,1766898632172,-1309.21840307,0.00014843,2]
[399937512,1766898632184,-1189.407222,0.00014843,2]
[399937513,1766898632196,-824.86254402,0.00014843,2]
[399937520,1766898638115,-426.47271327,0.00014843,2]
[399937521,1766898638171,-1487.85982699,0.00014843,2]
[399937522,1766898638226,-7770.88623359,0.00014843,2]
[399937590,1766898640269,-1513.62287552,0.00014843,2]
[399937591,1766898640380,-316.49701509,0.00014843,2]
[399937592,1766898640544,-2328.75316645,0.00014843,2]
[399937593,1766898640555,-8202.88,0.00014843,2]
[399937594,1766898640565,-2876.38,0.0001492,2]
[399937595,1766898640579,-156.81,0.00014941,2]
[399937596,1766898640589,-157.12,0.00014942,2]
[399937597,1766898640599,-500.0,0.00014973,2]
[399937598,1766898640609,-501.62889716,0.00014973,2]
[399937599,1766898640619,-1000.0,0.00015042,2]
[399937600,1766898640629,-302.35,0.00015101,2]
[399937601,1766898640638,-315.86,0.00015109,2]
[399937602,1766898640648,-500.0,0.00015178,2]
[399937603,1766898640659,-150.0,0.00015239,2]
[399937604,1766898640669,-150.0,0.00015266,2]
[399937605,1766898640679,-150.0,0.00015288,2]
[399937606,1766898640689,-150.0,0.00015288,2]
[399937607,1766898640699,-150.0,0.00015288,2]
[399937608,1766898640708,-150.0,0.00015288,2]
[399937609,1766898640718,-150.0,0.00015288,2]
[399937610,1766898640727,-150.0,0.00015288,2]
[399937611,1766898640737,-150.53597625,0.00015288,2]
[399937612,1766898640747,-150.0,0.00015288,2]
[399937613,1766898640756,-150.0,0.00015288,2]
[399937614,1766898640768,-150.0,0.00015288,2]
[399937615,1766898640778,-150.0,0.00015288,2]
[399937616,1766898640788,-150.0,0.00015288,2]
[399937617,1766898640799,-161.09118866,0.00015294,2]
[399937618,1766898640809,-250.0,0.00015302,2]
[399937619,1766898640819,-250.0,0.00015302,2]
[399937620,1766898640828,-250.0,0.00015302,2]
[399937621,1766898640838,-195.0,0.00015302,2]
[399937622,1766898640848,-260.55062385,0.00015302,2]
[399937623,1766898640858,-600.0,0.00015302,2]
[399937624,1766898640870,-229.08399187,0.00015302,2]
[399937625,1766898640879,-195.0,0.00015302,2]
[399937626,1766898640889,-386.78212137,0.00015302,2]
[399937627,1766898640899,-1743.89422697,0.00015302,2]
[399937628,1766898640909,-470.43,0.00015356,2]
[399937629,1766898640919,-992.670561,0.00015374,2]
[399937631,1766898640928,-152.0,0.00015452,2]
[399937632,1766898640937,-152.0,0.00015452,2]
[399937633,1766898640947,-153.0,0.00015452,2]
[399937634,1766898640957,-153.0,0.00015452,2]
[399937635,1766898640967,-153.0,0.00015452,2]
[399937636,1766898640977,-153.0,0.00015452,2]
[399937637,1766898640987,-153.0,0.00015452,2]
[399937638,1766898641263,-153.0,0.00015452,2]
[399937639,1766898641276,-153.0,0.00015452,2]
[399937640,1766898641286,-153.0,0.00015452,2]
[399937641,1766898641297,-153.0,0.00015452,2]
[399937642,1766898641307,-153.0,0.00015452,2]
[399937643,1766898641317,-276.53463817,0.00015452,2]
[399937644,1766898641327,-151.0,0.00015452,2]
[399937645,1766898641337,-155.90337168,0.00015452,2]
[399937646,1766898641347,-158.01644713,0.00015452,2]
[399937647,1766898641357,-152.0,0.00015452,2]
[399937648,1766898641367,-1257.0,0.00015452,2]
[399937649,1766898641376,-152.0,0.00015452,2]
[399937650,1766898641386,-1257.0,0.00015452,2]
[399937651,1766898641396,-152.0,0.00015452,2]
[399937652,1766898641405,-1257.0,0.00015452,2]
[399937653,1766898641414,-152.0,0.00015452,2]
[399937654,1766898641423,-308.7615783,0.00015452,2]
[399937655,1766898641438,-152.0,0.00015452,2]
[399937656,1766898641447,-152.0,0.00015452,2]
[399937657,1766898641457,-154.0,0.00015452,2]
[399937658,1766898641467,-1257.0,0.00015452,2]
[399937659,1766898641477,-155.28295099,0.00015452,2]
[399937660,1766898641487,-152.0,0.00015452,2]
[399937661,1766898641497,-297.1541342,0.00015452,2]
[399937662,1766898641507,-156.81,0.00015456,2]
[399937663,1766898641516,-1294.4298412,0.000155,2]
[399937664,1766898641526,-166.66,0.00015519,2]
[399937665,1766898641536,-1000.0,0.00015521,2]
[399937666,1766898641545,-150.0,0.0001553,2]
[399937667,1766898641555,-150.0,0.00015773,2]
[399937668,1766898641565,-151.0,0.00015784,2]
[399937669,1766898641575,-151.0,0.00015784,2]
[399937670,1766898641586,-477.36,0.00015799,2]
[399937671,1766898641596,-500.0,0.00015799,2]
[399937672,1766898641606,-620.0,0.00015799,2]
[399937673,1766898641616,-500.0,0.00015799,2]
[399937674,1766898641626,-500.0,0.00015799,2]
[399937675,1766898641636,-500.0,0.00015799,2]
[399937676,1766898641647,-500.0,0.00015799,2]
[399937677,1766898641657,-500.0,0.00015799,2]
[399937678,1766898641666,-500.0,0.00015799,2]
[399937679,1766898641677,-500.0,0.00015799,2]
[399937680,1766898641687,-500.0,0.00015799,2]
[399937681,1766898641697,-500.0,0.00015799,2]
[399937682,1766898641707,-500.0,0.00015799,2]
[399937683,1766898641717,-500.0,0.00015799,2]
[399937684,1766898641726,-500.0,0.00015799,2]
[399937685,1766898641737,-500.0,0.00015799,2]
[399937686,1766898641746,-200.0,0.00015799,2]
[399937687,1766898641756,-500.0,0.00015799,2]
[399937688,1766898641766,-207.4,0.00015799,2]
[399937689,1766898641775,-500.0,0.00015799,2]
[399937690,1766898641786,-215.0738,0.00015799,2]
[399937691,1766898641795,-500.0,0.00015799,2]
[399937692,1766898641805,-223.0315306,0.00015799,2]
[399937693,1766898641815,-500.0,0.00015799,2]
[399937694,1766898641825,-231.28369723,0.00015799,2]
[399937695,1766898641834,-500.0,0.00015799,2]
[399937696,1766898641843,-239.84119403,0.00015799,2]
[399937697,1766898641853,-500.0,0.00015799,2]
[399937698,1766898641863,-248.71531821,0.00015799,2]
[399937699,1766898641876,-257.91778498,0.00015799,2]
[399937700,1766898641885,-267.46074303,0.00015799,2]
[399937701,1766898641895,-523.04464741,0.00015799,2]
[399937702,1766898641905,-166.66,0.0001582,2]
[399937703,1766898641916,-151.0,0.0001582,2]
[399937704,1766898641925,-151.0,0.0001582,2]
[399937705,1766898641935,-150.0,0.00015854,2]
[399937706,1766898641946,-317.0,0.00015914,2]
[399937707,1766898641956,-420.0,0.00015914,2]
[399937708,1766898641966,-500.0,0.00015921,2]
[399937709,1766898641977,-168.21,0.00015922,2]
[399937710,1766898641987,-255.0,0.0001597,2]
[399937711,1766898641997,-1680.0,0.00015986,2]
[399937712,1766898642008,-1008.0,0.00016,2]
[399937713,1766898642018,-1019.0,0.00016,2]
[399937714,1766898642028,-150.0,0.00016016,2]
[399937715,1766898642039,-274.8558218,0.00016068,2]
[399937716,1766898642049,-477.36,0.00016073,2]
[399937717,1766898642058,-150.0,0.00016137,2]
[399937718,1766898642069,-150.0,0.00016137,2]
[399937719,1766898642079,-150.0,0.00016258,2]
[399937720,1766898642089,-1000.0,0.000163,2]
[399937721,1766898642099,-200.0,0.0001634,2]
[399937722,1766898642110,-477.36,0.00016347,2]
[399937723,1766898642120,-150.0,0.0001642,2]
[399937724,1766898642130,-157.12,0.00016436,2]
[399937725,1766898642140,-5926.87,0.00016438,2]
[399937726,1766898642149,-857.39970607,0.00016438,2]
[399937727,1766898642159,-7997.5711,0.0001646,2]
[399937728,1766898642169,-150.0,0.00016501,2]
[399937729,1766898642179,-358.99980711,0.000166,2]
[399937730,1766898642189,-477.36,0.00016621,2]
[399937731,1766898642199,-5603.16246646,0.0001666,2]
[399937732,1766898642209,-164.7,0.00016712,2]
[399937733,1766898642219,-168.0,0.00016723,2]
[399937734,1766898642229,-150.0,0.00016744,2]
[399937735,1766898642238,-2712.2032459,0.00016788,2]
[399937736,1766898642248,-2712.20324582,0.000168,2]
[399937737,1766898642258,-2712.20324582,0.00016813,2]
[399937738,1766898642268,-2712.20324582,0.00016825,2]
[399937739,1766898642278,-272.0,0.00016831,2]
[399937740,1766898642288,-2712.20324582,0.00016838,2]
[399937741,1766898642297,-200.0,0.00016849,2]
[399937742,1766898642307,-200.0,0.0001685,2]
[399937743,1766898642317,-2712.20324582,0.0001685,2]
[399937744,1766898642326,-168.0,0.00016854,2]
[399937745,1766898642336,-2712.20324582,0.00016863,2]
[399937746,1766898642346,-33095.77266619,0.00016886,2]
[399937752,1766898643845,-259.34,0.00016875,2]
[399937764,1766898646060,-2452.86324582,0.00016875,2]
[399937765,1766898646070,-151.0,0.00016886,2]
[399937766,1766898646081,-151.0,0.00016886,2]
[399937767,1766898646091,-425.08023381,0.00016886,2]
[399937768,1766898646101,-1000.0,0.00016886,2]
[399937769,1766898646111,-1027.0928,0.00016886,2]
[399937770,1766898646120,-500.0,0.00016887,2]
[399937771,1766898646130,-500.0,0.00016887,2]
[399937772,1766898646139,-500.0,0.00016887,2]
[399937773,1766898646150,-500.0,0.00016887,2]
[399937774,1766898646160,-500.0,0.00016887,2]
[399937775,1766898646169,-338.88154764,0.00016887,2]
[399937776,1766898646332,-161.11845236,0.00016887,2]
[399937777,1766898646342,-149.42754764,0.00016887,2]
[399937778,1766898646353,-350.57245236,0.00016887,2]
[399937779,1766898646363,-500.0,0.00016887,2]
[399937780,1766898646373,-500.0,0.00016887,2]
[399937781,1766898646382,-500.0,0.00016887,2]
[399937782,1766898646392,-112.42630264,0.00016887,2]
[399937783,1766898646404,-387.57369736,0.00016887,2]
[399937784,1766898646413,-500.0,0.00016887,2]
[399937785,1766898646422,-466.05078028,0.00016887,2]
[399937786,1766898646434,-33.94921972,0.00016887,2]
[399937787,1766898646444,-500.0,0.00016887,2]
[399937788,1766898646453,-47.50750513,0.00016887,2]
[399937974,1766899832159,-391.8733803,0.00014973,2]
[399937976,1766899832171,-26.12344987,0.00014973,2]
[399937978,1766899832181,-300.0,0.00015287,2]
[399937979,1766899832191,-1200.0,0.00015287,2]
[399937981,1766899832200,-186.0,0.00015287,2]
[399937982,1766899832211,-300.0,0.00015287,2]
[399937983,1766899832221,-150.0,0.00015288,2]
[399937984,1766899832231,-150.0,0.00015288,2]
[399937985,1766899832242,-150.0,0.00015288,2]
[399937986,1766899832252,-150.0,0.00015288,2]
[399937987,1766899832261,-150.0,0.00015288,2]
[399937988,1766899832272,-150.0,0.00015288,2]
[399937989,1766899832281,-150.0,0.00015288,2]
[399937990,1766899832291,-150.0,0.00015288,2]
[399937991,1766899832301,-826.16,0.00015449,2]
[399937992,1766899832310,-150.0,0.00015505,2]
[399937993,1766899832320,-1000.0,0.00015513,2]
[399937994,1766899832329,-1000.0,0.00015513,2]
[399937995,1766899832339,-1000.0,0.00015513,2]
[399937996,1766899832349,-1000.0,0.00015513,2]
[399937997,1766899832359,-1000.0,0.00015513,2]
[399937998,1766899832370,-1000.0,0.00015513,2]
[399937999,1766899832379,-1179.03548521,0.00015579,2]
[399938003,1766899832849,-260.03248731,0.00015579,2]
[399938004,1766899832860,-413.35202748,0.00015579,2]
[399938005,1766899832870,-300.0,0.00015624,2]
[399938006,1766899832879,-477.15876584,0.00015625,2]
[399938007,1766899832891,-906.816,0.00015625,2]
[399938008,1766899832903,-561.84523416,0.00015625,2]
[399938009,1766899832912,-151.0,0.00015666,2]
[399938010,1766899832923,-200.0,0.00015669,2]
[399938011,1766899832933,-207.4,0.00015669,2]
[399938012,1766899832943,-215.0738,0.00015669,2]
[399938013,1766899832954,-223.0315306,0.00015669,2]
[399938014,1766899832964,-208.99407482,0.00015669,2]
[399938015,1766899832976,-22.28962241,0.00015669,2]
[399938016,1766899832989,-239.84119403,0.00015669,2]
[399938017,1766899833000,-248.71531821,0.00015669,2]
[399938018,1766899833011,-7.15386535,0.00015669,2]
[399938019,1766899833023,-250.76391963,0.00015669,2]
[399938020,1766899833032,-71.82929425,0.00015669,2]
[399938021,1766899833043,-195.63144878,0.00015669,2]
[399938022,1766899833053,-362.62619391,0.00015669,2]
[399938023,1766899833062,-168.0,0.00015915,2]
[399938024,1766899833072,-151.0,0.00015997,2]
[399938025,1766899833082,-151.0,0.00015997,2]
[399938026,1766899833092,-684.90508682,0.00016,4]
[399938028,1766899833135,-9108.43118675,0.00016,4]
[399938029,1766899833169,-1618.14212,0.00016,4]
[399938030,1766899833205,-731.01688365,0.00016,4]
[399938036,1766899838195,-18690.87563163,0.00016,4]
[399938037,1766899838205,-168.0,0.00016025,2]
[399938038,1766899838215,-351.65,0.00016025,2]
[399938039,1766899838226,-151.0,0.00016039,2]
[399938040,1766899838235,-151.0,0.00016039,2]
[399938041,1766899838245,-5000.00450342,0.000162,5]
[399938042,1766899838255,-168.0,0.00016277,2]
[399938043,1766899838264,-209.68,0.000163,2]
[399938044,1766899838274,-500.0,0.00016307,3]
[399938045,1766899838283,-538.0,0.0001632,2]
[399938046,1766899838293,-502.0,0.00016329,2]
[399938047,1766899838302,-168.0,0.00016333,2]
[399938048,1766899838311,-157.89219015,0.00016386,2]
[399938049,1766899838320,-151.0,0.00016425,2]
[399938050,1766899838330,-153.251894,0.00016428,2]
[399938051,1766899838339,-153.026639,0.00016428,2]
[399938052,1766899838349,-299.632331,0.00016428,2]
[399938053,1766899838358,-299.632331,0.00016428,2]
[399938054,1766899838368,-151.0,0.00016428,2]
[399938055,1766899838377,-299.632331,0.00016428,2]
[399938056,1766899838386,-299.632331,0.00016428,2]
[399938057,1766899838396,-500.0,0.00016428,2]
[399938058,1766899838404,-500.0,0.00016428,2]
[399938059,1766899838414,-500.0,0.00016428,2]
[399938060,1766899838423,-500.0,0.00016428,2]
[399938061,1766899838432,-500.0,0.00016428,2]
[399938062,1766899838442,-500.0,0.00016428,2]
[399938063,1766899838451,-500.0,0.00016428,2]
[399938064,1766899838461,-500.0,0.00016428,2]
[399938065,1766899838471,-500.0,0.00016428,2]
[399938066,1766899838480,-500.0,0.00016428,2]
[399938067,1766899838490,-207.4,0.00016428,2]
[399938068,1766899838499,-500.0,0.00016428,2]
[399938069,1766899838509,-500.0,0.00016428,2]
[399938070,1766899838519,-500.0,0.00016428,2]
[399938071,1766899838529,-500.0,0.00016428,2]
[399938073,1766899838544,-500.0,0.00016428,2]
[399938075,1766899838553,-620.0,0.00016428,2]
[399938077,1766899838562,-500.0,0.00016428,2]
[399938079,1766899838572,-1088.67069402,0.00016428,2]
[399938081,1766899838583,-500.0,0.00016428,2]
[399938083,1766899838592,-500.0,0.00016428,2]
[399938085,1766899838602,-500.0,0.00016428,2]
[399938087,1766899838611,-500.0,0.00016428,2]
[399938089,1766899838620,-500.0,0.00016428,2]
[399938091,1766899838630,-500.0,0.00016428,2]
[399938093,1766899838639,-500.0,0.00016428,2]
[399938095,1766899838648,-500.0,0.00016428,2]
[399938097,1766899838658,-500.0,0.00016428,2]
[399938099,1766899838667,-515.06606387,0.00016428,2]
[399938101,1766899838676,-163.70604612,0.00016435,2]
[399938103,1766899838685,-151.0,0.00016438,2]
[399938105,1766899838694,-151.0,0.00016438,2]
[399938107,1766899838703,-144.74701279,0.00016438,2]
[399938109,1766899838718,-6.25298721,0.00016438,2]
[399938111,1766899838727,-151.0,0.00016438,2]
[399938113,1766899838736,-275.6859882,0.00016438,2]
[399938115,1766899838747,-5217.9740118,0.00016438,2]
[399938117,1766899838757,-744.49641742,0.00016438,2]
[399938119,1766899838766,-210.425724,0.00016438,2]
[399938121,1766899838775,-150.0,0.00016446,2]
[399938123,1766899838785,-195.0,0.0001647,2]
[399938125,1766899838794,-250.0,0.0001647,2]
[399938127,1766899838804,-600.0,0.0001647,2]
[399938129,1766899838813,-250.0,0.0001647,2]
[399938131,1766899838822,-195.0,0.0001647,2]
[399938133,1766899838831,-299.632331,0.0001647,2]
[399938135,1766899838840,-151.0,0.0001647,2]
[399938137,1766899838850,-299.632331,0.0001647,2]
[399938139,1766899838859,-299.632331,0.0001647,2]
[399938141,1766899838868,-299.632331,0.0001647,2]
[399938143,1766899838877,-150.0,0.00016473,2]
[399938145,1766899838887,-213.12603991,0.00016501,2]
[399938147,1766899838896,-500.0,0.00016521,2]
[399938149,1766899838905,-538.0,0.00016607,2]
[399938151,1766899838914,-201.53565333,0.00016616,2]
[399938153,1766899838923,-500.0,0.00016616,2]
[399938155,1766899838932,-150.0,0.00016616,2]
[399938157,1766899838941,-150.0,0.00016616,2]
[399938159,1766899838950,-500.0,0.00016643,2]
[399938161,1766899838959,-198.50844961,0.00016643,2]
[399938163,1766899838968,-150.0,0.00016643,2]
[399938165,1766899838977,-3471.90219889,0.0001666,2]
[399938166,1766899838986,-500.0,0.00016671,2]
[399938169,1766899838995,-150.6331434,0.00016671,2]
[399938170,1766899839005,-6174.58093477,0.00016678,2]
[399938173,1766899839015,-9923.28810277,0.00016678,2]
[399938175,1766899839026,-814.71698381,0.00016678,2]
[399938177,1766899839036,-151.0,0.00016678,2]
[399938179,1766899839045,-151.0,0.00016678,2]
[399938181,1766899839054,-152.723227,0.00016678,2]
[399938183,1766899839064,-151.594665,0.00016678,2]
[399938185,1766899839073,-151.0,0.00016678,2]
[399938187,1766899839082,-151.0,0.00016678,2]
[399938189,1766899839092,-151.0,0.00016678,2]
[399938191,1766899839101,-151.0,0.00016678,2]
[399938193,1766899839111,-299.632331,0.00016678,2]
[399938195,1766899839120,-151.0,0.00016678,2]
[399938197,1766899839129,-299.632331,0.00016678,2]
[399938199,1766899839139,-299.632331,0.00016678,2]
[399938200,1766899839148,-299.632331,0.00016678,2]
[399938202,1766899839157,-235.57379375,0.00016687,2]
[399938204,1766899839167,-151.0,0.00016698,2]
[399938206,1766899839177,-151.0,0.00016698,2]
[399938208,1766899839186,-151.0,0.00016698,2]
[399938210,1766899839195,-151.0,0.00016698,2]
[399938211,1766899839205,-500.0,0.00016698,2]
[399938212,1766899839214,-313.24625886,0.000167,2]
[399938213,1766899839224,-6174.58093471,0.00016703,2]
[399938214,1766899839234,-10738.00508651,0.00016703,2]
[399938215,1766899839244,-151.756569,0.00016703,2]
[399938216,1766899839253,-151.0,0.00016703,2]
[399938217,1766899839262,-151.0,0.00016703,2]
[399938218,1766899839271,-151.0,0.00016703,2]
[399938219,1766899839281,-151.0,0.00016703,2]
[399938220,1766899839290,-151.0,0.00016703,2]
[399938221,1766899839300,-151.0,0.00016703,2]
[399938222,1766899839309,-151.0,0.00016703,2]
[399938223,1766899839320,-151.0,0.00016703,2]
[399938224,1766899839330,-189.690709,0.00016703,2]
[399938225,1766899839339,-299.632331,0.00016703,2]
[399938226,1766899839348,-154.27608,0.00016703,2]
[399938227,1766899839358,-299.632331,0.00016703,2]
[399938228,1766899839367,-299.632331,0.00016703,2]
[399938229,1766899839377,-299.632331,0.00016703,2]